Cogmind - Beta 12 @@@ ROGUE MODE // 2023.07.05 @ 22:30:17 Player: zapruda Result: Destroyed by H-55 Commando with Gauss Rifle Performance ------------- Evolutions (3) 1500 Regions Visited (4) 800 Robots Destroyed (52) 260 Value Destroyed (1293) 1293 Prototype IDs (4) 80 Alien Tech Used (0) 0 Bonus (123) 123 TOTAL SCORE: 4056 Bonus ------- High Alert Combat Kills 123 Cogmind --------- Core Integrity 0/700 Matter 124/300 Energy 99/100 System Corruption 2% Temperature Cool (0) Movement Core (50) Location -7/Factory Parts ------- > --- POWER (1) -------- (None) > --- PROPULSION (2) --- (None) > --- UTILITY (8) ------ Improved Signal Interpreter Advanced Terrain Scan Processor > --- WEAPON (2) ------- (None) > --- INVENTORY (5) ---- Improved Light Armor Plating Flak Gun Peak State ------------ > --- POWER ------------ Light Nuclear Core > --- PROPULSION ------- Improved VTOL Module Xenon Bombardment Thruster > --- UTILITY ---------- Cryofiber Web Improved Heat Sink Weight Redist. System Improved Signal Interpreter Improved Terrain Scanner Advanced Terrain Scan Processor Hacking Suite Hacking Suite > --- WEAPON ----------- Advanced Beam Cannon Gauss Rifle > --- INVENTORY -------- Light Deuterium Engine Improved Light Armor Plating Hacking Suite Particle Gun [Rating: 43] Favorites ----------- Power Light Ion Engine Engine Light Ion Engine Power Core Light Nuclear Core Propulsion Improved VTOL Module Leg Aluminum Leg Wheel Compact Wheel Flight Unit Improved VTOL Module Utility Hacking Suite Device Weight Redist. System Storage Small Storage Unit Processor Improved Signal Interpreter Hackware Hacking Suite Protection Core Shielding Weapon Minigun Energy Gun Medium Laser Energy Cannon Advanced Beam Cannon Ballistic Gun Minigun Ballistic Cannon Improved Light Cannon Launcher Grenade Launcher Build | -11 -10 -9 -8 -7 ------- Run | Jun Mat Mat Mat Fac Slots Evolved 6 | . . 2 2 2 Power . | . . . . . Propulsion . | . . . . . Utility 6 | . . 2 2 2 Weapon . | . . . . . Parts Attached 62 | . 2 17 26 17 Power 7 | . . 1 4 2 Engine 6 | . . 1 4 1 Core 1 | . . . . 1 Reactor . | . . . . . Propulsion 14 | . 2 4 6 2 Treads . | . . . . . Leg . | . . . . . Wheel 2 | . 2 . . . Hover . | . . . . . Flight 12 | . . 4 6 2 Utility 21 | . . 4 10 7 Device 8 | . . . 6 2 Storage 1 | . . 1 . . Processor 4 | . . 1 2 1 Hackware 4 | . . 1 . 3 Protection 4 | . . 1 2 1 Artifact . | . . . . . Weapon 20 | . . 8 6 6 Energy Gun 3 | . . . 2 1 Energy Cannon 1 | . . . 1 . Ballistic Gun 10 | . . 5 1 4 Ballistic Cannon 4 | . . 1 2 1 Launcher 2 | . . 2 . . Special Weapon . | . . . . . Impact Weapon . | . . . . . Slashing Weapon . | . . . . . Piercing Weapon . | . . . . . Special Melee Weapon . | . . . . . Unidentified Prototypes 2 | . . . 2 . Parts Lost 33 | . . 2 15 16 Power 6 | . . 1 2 3 Propulsion 6 | . . . 4 2 Utility 12 | . . . 5 7 Weapon 9 | . . 1 4 4 Highest Loss Streak 10 | . . 1 8 10 To Critical Strikes . | . . . . . Average Slot Usage (%) 79 | . 85 73 75 85 Engine 8 | . 14 10 8 2 Wheel 6 | . 28 . . . Flight 11 | . . 20 13 12 Device 10 | . . . 13 23 Storage 3 | . 14 . . . Processor 12 | . . 9 19 15 Hackware 5 | . . 5 2 12 Protection 3 | . . 4 4 2 Energy Gun 3 | . 14 . 1 . Energy Cannon 1 | . . . . 5 Ballistic Gun 9 | . 14 14 7 3 Ballistic Cannon 2 | . . 3 3 1 Naked Turns . | . . . . . Heaviest Build 17 | 11 11 16 16 17 Greatest Support 32 | 20 32 32 16 17 Greatest Overweight (x) 1 | . . 1 1 1 Average Overweight (x) . | . . . . . Largest Inventory Capacity 10 | 8 8 10 5 5 Average Capacity 5 | 8 8 5 5 5 Most Carried 9 | 6 8 9 5 5 Average Carried 4 | 6 7 3 3 3 Final Capacity 8 | 8 8 5 5 5 Final Carried 8 | 6 8 4 4 2 Class Distribution -------------------- 55% | Mutant 27% | Sprinter 16% | Hacker-Mutant Dominant Class ---------------- Mutant | -10/Materials Mutant | -9/Materials Sprinter | -8/Materials Hacker-Mutant | -7/Factory Resources | -11 -10 -9 -8 -7 ----------- Run | Jun Mat Mat Mat Fac Matter Collected 1380 | 183 69 384 663 81 Remotely . | . . . . . Salvage Created 1625 | . 281 468 755 121 Parts 100 | . 19 32 39 10 Haulers Intercepted 5 | . 1 1 3 . Recyclers Shooed 2 | . . 2 . . Parts Field Recycled . | . . . . . Retrieved Matter . | . . . . . Parts Self-Destructed . | . . . . . Prevented . | . . . . . Kills | -11 -10 -9 -8 -7 ------- Run | Jun Mat Mat Mat Fac Combat Hostiles Destroyed 38 | . 6 11 16 5 Guns 28 | . 6 9 12 1 Cannons 9 | . . 2 4 3 AOE 1 | . . . . 1 Classes Destroyed 11 | . 5 2 4 . Worker 2 | . . . 2 . Tunneler 1 | . . . 1 . Hauler 5 | . 1 1 3 . Recycler 2 | . . 2 . . Operator 2 | . 1 1 . . Watcher 2 | . 1 . 1 . Swarmer 16 | . 3 7 3 3 Cutter 2 | . . . 2 . Grunt 16 | . 3 3 9 1 Sentry 2 | . . 1 1 . Hunter 2 | . . . 1 1 Best Kill Streak 9 | . 3 9 7 4 Combat Bots Only 8 | . 3 8 5 4 Max Kills in Single Turn 2 | . 1 1 2 2 Gunslinging . | . . . . . Exploded 1 | . . . . 1 Melee . | . . . . . Uniques/NPCs Destroyed . | . . . . . Combat | -11 -10 -9 -8 -7 -------- Run | Jun Mat Mat Mat Fac Damage Taken 3477 | . 197 219 1341 1720 Core 1128 | . 34 89 304 701 Absorbed by Shields . | . . . . . Redirected to Shielding 11 | . . 5 6 . Regen/Repaired (Parts) 21 | . . . . 21 Core Remaining (%) 76 | 100 86 77 44 . Volleys Fired 208 | . 32 57 96 23 Largest 2 | . 2 2 2 2 Hottest 116 | . 70 55 102 116 Shots Fired 343 | . 64 94 150 35 Gun 272 | . 64 83 107 18 Cannon 70 | . . 10 43 17 Launcher 1 | . . 1 . . Special . | . . . . . Kinetic 270 | . 32 93 125 20 Thermal 67 | . 32 . 20 15 Explosive 1 | . . 1 . . Electromagnetic 5 | . . . 5 . Robot Hit Streak 10 | . 5 10 10 8 Robot Miss Streak 6 | . 3 6 6 3 Penetration Max . | . . . . . Secondary Targets 3 | . 1 1 1 . Max Gunslinging Chain 1 | . 1 1 1 . Shots Hit Robots 215 | . 36 55 100 24 Core Hits 93 | . 17 24 40 12 Critical Kills 1 | . . 1 . . Critical Parts Destroyed 2 | . . . 2 . Critical Strikes 7 | . 1 2 4 . Burn 2 | . 1 . 1 . Destroy 4 | . . 1 3 . Blast 1 | . . 1 . . Melee Attacks . | . . . . . Impact . | . . . . . Slashing . | . . . . . Piercing . | . . . . . Sneak Attacks . | . . . . . Combat Hostiles . | . . . . . Follow-up Attacks . | . . . . . Damage Inflicted 3851 | . 351 733 1861 906 Guns 2450 | . 351 587 1250 262 Cannons 992 | . . 123 607 262 Explosions 405 | . . 23 . 382 Melee . | . . . . . Ramming 4 | . . . 4 . Kinetic 2711 | . 176 710 1516 309 Thermal 1049 | . 175 . 277 597 Explosive 23 | . . 23 . . Electromagnetic 64 | . . . 64 . Impact . | . . . . . Slashing . | . . . . . Piercing . | . . . . . Highest Corruption 2 | . . . 1 2 Average Corruption 1 | . . . 1 1 Corruption Purged . | . . . . . Corruption Blocked . | . . . . . Effects 2 | . . . 2 . Data Loss (major) 1 | . . . 1 . Misfires 1 | . . . 1 . Overload Shots . | . . . . . Overflow Damage 310 | . . . 5 305 Projectiles 5 | . . . 5 . Explosions 305 | . . . . 305 Melee . | . . . . . Knockbacks 12 | . . 1 11 . Impact . | . . . . . Kinetic 11 | . . 1 10 . Secondary 1 | . . . 1 . Self-Inflicted Damage 403 | . . . 2 401 Shots 4 | . . . . 4 Rammed 1 | . . . 1 . Targets Rammed 1 | . . . 1 . Kicked . | . . . . . Crushed . | . . . . . Highest Temperature 295 | . 244 30 295 39 Average Temperature 48 | . 73 9 53 9 Received Heat Transfer 789 | . 54 36 405 294 Effects 3 | . . . 3 . Interference 3 | . . . 3 . Siege Activations . | . . . . . Robots Corrupted . | . . . . . Combat Hostiles . | . . . . . Parts Fried . | . . . . . Impact Corruptions . | . . . . . Robots Melted . | . . . . . Combat Hostiles . | . . . . . Parts Melted 2 | . 2 . . . Heat Transferred 1915 | . 592 . 666 657 Parts Sabotaged . | . . . . . Parts Stolen . | . . . . . Parts Stripped . | . . . . . Power Chain Reactions . | . . . . . Missiles Intercepted . | . . . . . Alert | -11 -10 -9 -8 -7 ------- Run | Jun Mat Mat Mat Fac Peak Influence 628 | . 184 517 628 476 Initial 255 | . . 77 218 255 Average 305 | . 76 253 485 308 Maximum Alert Level 2 | . . 2 2 2 Low Security (%) 29 | 100 100 40 . . Level 1 34 | . . 41 18 78 Level 2 36 | . . 18 81 21 Level 3 . | . . . . . Level 4 . | . . . . . Level 5 . | . . . . . High Security . | . . . . . Max Security . | . . . . . Squads Dispatched 16 | . 4 1 6 5 Investigation 6 | . 1 1 2 2 Extermination 1 | . . . . 1 Reinforcement 9 | . 3 . 4 2 Assault . | . . . . . Garrison . | . . . . . Intercept . | . . . . . Searches Triggered . | . . . . . Construction Impeded 1 | . . . 1 . Haulers Reinforced . | . . . . . Active Scanning Responses . | . . . . . Cargo Convoy Interrupts . | . . . . . Stealth | -11 -10 -9 -8 -7 --------- Run | Jun Mat Mat Mat Fac Distress Signals 3 | . 2 1 . . Communications Jammed . | . . . . . Distress Signals . | . . . . . Times Spotted 78 | . 10 21 29 18 Peak Tracking Total 11 | . 4 6 5 11 Tactical Retreats 7 | . . 1 3 3 Traps | -11 -10 -9 -8 -7 ------- Run | Jun Mat Mat Mat Fac Traps Triggered . | . . . . . Indirectly . | . . . . . Trap Hack Attempts . | . . . . . Triggered . | . . . . . Disarmed . | . . . . . Reprogrammed . | . . . . . Reused . | . . . . . Traps Extracted . | . . . . . Installed . | . . . . . Triggered . | . . . . . Machines | -11 -10 -9 -8 -7 ---------- Run | Jun Mat Mat Mat Fac Machines Disabled 7 | . . 2 1 4 Max in Single Turn 4 | . . 1 1 4 Machines Repaired . | . . . . . Machines Sabotaged . | . . . . . Overloaded Fab Kills . | . . . . . Hacking | -11 -10 -9 -8 -7 --------- Run | Jun Mat Mat Mat Fac Machines Accessed 12 | . 2 3 4 3 Terminals 7 | . 2 2 2 1 Fabricators 1 | . . . . 1 Repair Stations 2 | . . . 1 1 Recycling Units 1 | . . . 1 . Scanalyzers 1 | . . 1 . . Garrison Access . | . . . . . Total Hacks 35 | . 5 10 13 7 Successful 14 | . 2 4 4 4 Failed 21 | . 3 6 9 3 Catastrophic 5 | . . 3 1 1 Database Lockouts . | . . . . . Manual 7 | . . 2 5 . Terminals 20 | . 5 7 7 1 Fabricators 3 | . . . . 3 Repair Stations 6 | . . . 3 3 Recycling Units 3 | . . . 3 . Scanalyzers 3 | . . 3 . . Garrison Access . | . . . . . Terminal Hacks 5 | . 2 1 2 . Record 2 | . 2 . . . Part Schematic 1 | . . . 1 . Prototype ID Bank 1 | . . 1 . . Alert Level 1 | . . . 1 . Fabricator Hacks 2 | . . . . 2 Load Schematic 1 | . . . . 1 Build 1 | . . . . 1 Repair Station Hacks 3 | . . . 1 2 Scan Component 2 | . . . 1 1 Repair 1 | . . . . 1 Recycling Unit Hacks 1 | . . . 1 . Retrieve Components 1 | . . . 1 . Scanalyzer 3 | . . 3 . . Insert Component 1 | . . 1 . . Analyze 2 | . . 2 . . Garrison Access Hacks . | . . . . . Unauthorized Hacks . | . . . . . Terminals . | . . . . . Fabricators . | . . . . . Repair Stations . | . . . . . Recycling Units . | . . . . . Scanalyzers . | . . . . . Garrison Access . | . . . . . Data Cores Recovered . | . . . . . Used . | . . . . . Hacking Detections 12 | . 2 3 4 3 Full Trace Events 9 | . 1 3 3 2 Feedback Events 1 | . . . 1 . Hackware Fried 1 | . . . 1 . Feedback Blocked . | . . . . . Robot Schematics Acquired . | . . . . . Robots Built . | . . . . . Authchips . | . . . . . Time . | . . . . . Total Robot Build Rating . | . . . . . Part Schematics Acquired 2 | . . 1 1 . Parts Built 1 | . . . . 1 Authchips . | . . . . . Time 36 | . . . . 36 Total Part Build Rating 3 | . . . . 3 Parts Repaired 1 | . . . . 1 Time 22 | . . . . 22 Parts Recycled . | . . . . . Recycled Matter . | . . . . . Retrieved Matter . | . . . . . Retrieved Components 9 | . . . 9 . Parts Scanalyzed 1 | . . 1 . . Part Schematics Acquired 1 | . . 1 . . Parts Damaged . | . . . . . Bothacking | -11 -10 -9 -8 -7 ------------ Run | Jun Mat Mat Mat Fac Used RIF Installer . | . . . . . Robots Hacked . | . . . . . Non-combat . | . . . . . Combat . | . . . . . Robot Hacks Applied . | . . . . . Relay Couplers Released . | . . . . . Fabnet Peak Effective % . | . . . . . Robots Rewired . | . . . . . Allies Hacked . | . . . . . Hacks Repelled . | . . . . . Allies | -11 -10 -9 -8 -7 -------- Run | Jun Mat Mat Mat Fac Total Allies . | . . . . . Largest Group . | . . . . . Highest-Rated Group . | . . . . . Highest-Rated Ally . | . . . . . Total Orders . | . . . . . Ally Attacks . | . . . . . Total Damage . | . . . . . Kills . | . . . . . Allies Corrupted . | . . . . . Allies Melted . | . . . . . Intel | -11 -10 -9 -8 -7 ------- Run | Jun Mat Mat Mat Fac Robot Analysis Total . | . . . . . Derelict Logs Recovered . | . . . . . Drone Launches . | . . . . . Drone Recoveries . | . . . . . Exploration | -11 -10 -9 -8 -7 ------------- Run | Jun Mat Mat Mat Fac Turns Passed 1590 | 2 342 313 526 407 Spaces Moved 1770 | 2 244 384 615 525 Core 23 | . . . . 23 Treads . | . . . . . Legs 4 | 2 2 . . . Wheels 246 | . 242 4 . . Hover . | . . . . . Flight 1497 | . . 380 615 502 Fastest Speed 32 | 120 100 32 32 34 Average Speed 44 | 120 100 34 35 35 Slowest Speed 120 | 120 120 105 105 105 Overloaded Moves . | . . . . . Propulsion Burnouts . | . . . . . Robots Hopped 24 | . . 3 10 11 Cave-ins Triggered . | . . . . . Exploration Rate (%) 28 | 2 46 38 39 19 Regions Visited 4 Branch Regions . Pre-discovered Areas . | . . . . . Known Exits Taken . | . . . . . Unknown Exits Taken 4 | 1 1 1 1 . Scrap Searched . | . . . . . Spaces Dug 1 | . . . . 1 Terrain Destroyed 28 | . . 6 2 20 Melee . | . . . . . Projectile 3 | . . . 2 1 AOE 25 | . . 6 . 19 Terrain Rammed . | . . . . . Walls Destroyed . | . . . . . Machines Disabled . | . . . . . Actions | -11 -10 -9 -8 -7 --------- Run | Jun Mat Mat Mat Fac Total 2253 | 1 283 489 780 700 Wait 164 | . 4 3 23 134 Move 1719 | 1 243 377 595 503 Hop 23 | . . 3 9 11 Pick Up 45 | . 2 15 20 8 Fast Attach 7 | . . 1 4 2 Attach 45 | . . 13 19 13 Detach 7 | . . 1 2 4 Swap 10 | . 2 3 3 2 Drop 24 | . . 16 8 . Fire 208 | . 32 57 96 23 Melee . | . . . . . Ram 1 | . . . 1 . Kick . | . . . . . Crush . | . . . . . Escape Stasis . | . . . . . Rewire . | . . . . . Trap . | . . . . . Miscellaneous . | . . . . . Route ------- -11/Junkyard -10/Materials -9/Materials -8/Materials -7/Factory History --------- Turn | Location | Event 1 | -11/Junkyard | Discovered new exit (range 1) 3 | -11/Junkyard | Entered Materials 313 | -10/Materials | Build established: Mutant 335 | -10/Materials | Discovered new exit (range 9) 345 | -10/Materials | Entered another Materials area 345 | -9/Materials | Evolved 2 slots: Utility x2 641 | -9/Materials | Destroyed 8 combat bots 655 | -9/Materials | Discovered new exit (range 5) 658 | -9/Materials | Entered another Materials area 658 | -8/Materials | Evolved 2 slots: Utility x2 829 | -8/Materials | Hacking Suite fried by hacking feedback 851 | -8/Materials | Build established: Sprinter 994 | -8/Materials | Lost 8 parts (1p2n3u2w) 1104 | -8/Materials | Core integrity fell below 50% 1137 | -8/Materials | Lost 4 parts (1n1u2w) 1167 | -8/Materials | Discovered new exit (range 8) 1184 | -8/Materials | Entered Factory 1184 | -7/Factory | Evolved 2 slots: Utility x2 1372 | -7/Factory | Fabricated Hacking Suite (x1) 1464 | -7/Factory | Repaired Xenon Bombardment Thruster 1527 | -7/Factory | Lost 4 parts (1p1n2w) 1547 | -7/Factory | Core integrity fell below 50% 1584 | -7/Factory | Core integrity fell below 20% 1591 | -7/Factory | Destroyed by H-55 Commando with Gauss Rifle Last Messages --------------- 01560_ Acquired Flak Gun. 01566_ ALERT: Hostiles spotted, dispatching reinforcements to Terminal F004. 01570_ G-47 Trooper destroyed. 01572_ Acquired 37 matter. 01573_ Slug penetrates Wall. 01573_ Neutrino Reactor explodes. 01573_ Door malfunctions. 01574_ Hacking Suite destroyed. 01576_ ALERT: Suspicious intruders detected, dispatching Cutter reinforcements to area. 01578_ Imp. VTOL Module destroyed. 01580_ Slug penetrates P-60 Hacker. 01583_ Penetrated by Slug. 01587_ Hacking Suite destroyed. 01588_ Penetrated by Slug. 01588_ Cryofiber Web destroyed. 01588_ Hacking Suite destroyed. 01589_ Slug penetrates Wall. 01591_ Penetrated by Slug. Map ----- +----------------------------------------------------+ | ?????????????????????????????????????????? | | ?????????????????????????????????????????? | | ?????????????????????????????????????????? | | ?????????????????????????????????????????? | | ?????????????????????????????????????????? | | ?????????????????????????????????????????? | | ???????????????????#####################+# | | ???????????????????# | | ???????????????????# ^ | | ???????????????????# | | ???????????????????# | | ???????????????????# | | ???????????????????# | | ???????????????????# | | ???????????????????# ####+########## | | ???????????????????# # #? | | ???????????????????# # #? | | ???????????????????# # #? | | ???????????????????# # """ """ ## | | ?????####??????????# # """ """ + | | # ??? #??????????# # """ """ ## | | # """ #??????????# # #? | | ? """ #??????????# # #? | | ? """ ############ # #? | | # # ## k # #? | | # """ # @ h # ""T"" #? | | # """ # h # """"" #? | | # """ # ##############? | | # + #?????????????? | | # """ # #?????????????? | | # """ # p #?????????????? | | # """ # ! #?????????????? | | # # ##########?????????????? | | # """ ### ###??????????????????????? | | # """ #?# #????????????????????????? | | ? ? "?" #?# #????????????????????????? | | ?????? ??# gg #????????????????????????? | | ????####### #????????????????????????? | | ???? # #????????????????????????? | | ????""""" # #????????????????????????? | | ???"""""" # ###?##???????????????????? | | ?? """""" # # ? ???????????????????? | | # """""" + # #??????????????????? | | # # # #??????????????????? | | # """""" # # """ #??????????????????? | | ?? """""" # # """ #??????????????????? | | ???"""""" # # """ #??????????????????? | | ????""""" # # #??????????????????? | | ???? # # #??????????????????? | | ???"""""" # # #??????????????????? | +----------------------------------------------------+ Best States ------------- Heat Dissipation 48 Energy Generation 14 Energy Capacity 280 Matter Stores 300 Matter Capacity 300 Sight Range 16 Robot Scan Range 15 Terrain Scan Range 16 Terrain Scan Density 210 Additional Mass Support 6 Base Temperature (-) 100 Armor Coverage 150 Core Shielding 20 Evasion (%) 71 Targeting Accuracy 6 Offensive Hacking 30 Item Schematics ----------------- Hacking Suite | -9/Materials | Scanalyzed Adv. Weight Redist. System | -8/Materials | Hacked Robot Schematics ------------------ None Fabricated ------------ Hacking Suite | x1 | -7/Factory Alien Tech Used ----------------- None Achievements -------------- None Challenges ------------ None Game ------ Seed NavigationThrowingMembrane Manual? 0 Play Time 00:26:45 Cumulative 81.0 hours Start 2023.07.05 @ 22:05:13 End 2023.07.05 @ 22:30:17 Sessions 1 Manual Loads 0 Difficulty Rogue Special Mode None Game No. 124 Rogue 124 Adventurer 0 Explorer 0 Win Type - Total 0 Types 0/0/0/0/0/0/0/0/0 Lore% 30 Gallery% 52 Achievement% 35 Wizard Run 0 Options --------- ASCII 0 Keyboard 0 Movement Mouse Keybinds 0 Fullscreen 2 Font 18/SmallcapsGlow Map View 76x50 Tactical HUD 1 Map Filters NONE Filters NONE Steam 1 RUN: 0d094b99-3c99-4322-ab54-68ecf2f08860